bitfinex-derivatives/quotes_BTCF0:USTF0_20251202
["timestamp","ask_amount","ask_price","bid_price","bid_amount"]
[1764672633798,0.50857,87274.0,87273.0,0.83319]
[1764672636193,0.50857,87274.0,87273.0,1.36691]
[1764672640405,0.50857,87274.0,87273.0,1.36791]
[1764672640796,0.50857,87274.0,87273.0,1.36691]
[1764672641008,0.50857,87274.0,87273.0,1.36791]
[1764672641505,0.50857,87274.0,87273.0,1.36691]
[1764672642807,0.50857,87274.0,87273.0,1.36675]
[1764672643000,0.50857,87274.0,87273.0,1.13735]
[1764672643311,0.50857,87274.0,87273.0,1.35132]
[1764672643607,0.0114584,87279.0,87278.0,0.45696]
[1764672643608,0.45601,87279.0,87278.0,0.45696]
[1764672648716,0.45601,87279.0,87278.0,0.4988275]
[1764672649017,0.45601,87279.0,87278.0,0.4873691]
[1764672649514,0.45601,87279.0,87278.0,0.4988275]
[1764672651019,0.45601,87279.0,87278.0,0.4873691]
[1764672653223,0.45601,87279.0,87278.0,1.0207291]
[1764672655519,0.45601,87279.0,87278.0,1.0206491]
[1764672661308,0.00017185,87282.0,87281.0,0.45696]
[1764672661514,0.45601,87311.0,87310.0,0.45696]
[1764672661815,0.5986231,87318.0,87317.0,0.45696]
[1764672662123,0.45601,87305.0,87304.0,0.03067965]
[1764672662311,0.13116,87306.0,87297.0,0.40170621]
[1764672662312,0.45601,87301.0,87300.0,0.45696]
[1764672662513,0.58717,87312.0,87311.0,0.45696]
[1764672663327,0.41095185,87320.0,87319.0,0.4215]
[1764672663624,0.41095185,87320.0,87319.0,0.95478]
[1764672663831,0.00017185,87320.0,87319.0,0.95478]
[1764672664918,0.22659904,87346.0,87342.0,0.4215]
[1764672664919,0.77158,87343.0,87342.0,0.4215]
[1764672665122,0.41082,87348.0,87347.0,0.4215]
[1764672665431,0.20279,87348.0,87347.0,0.4215]
[1764672665626,4e-05,87348.0,87347.0,0.4215]
[1764672665928,0.41082,87348.0,87347.0,0.4215]
[1764672666129,4e-05,87348.0,87347.0,0.4215]
[1764672666429,4e-05,87348.0,87347.0,0.7823]
[1764672666613,4e-05,87348.0,87347.0,0.7833]
[1764672667320,0.20292162,87356.0,87355.0,0.4215]
[1764672667521,0.20292162,87356.0,87355.0,1.31554]
[1764672668028,0.41095162,87356.0,87355.0,1.31554]
[1764672668428,0.41095162,87356.0,87355.0,1.31546]
[1764672669324,0.20292162,87356.0,87355.0,1.31546]
[1764672669725,0.20292162,87356.0,87355.0,1.3269083]
[1764672669726,0.00017162,87356.0,87355.0,1.3269083]
[1764672669928,0.41082,87374.0,87373.0,0.4215]
[1764672670225,0.41082,87374.0,87373.0,1.31538]
[1764672670622,0.41082,87374.0,87373.0,0.89388]
[1764672670818,0.41078,87364.0,87363.0,0.3608]
[1764672671125,0.41078,87364.0,87363.0,1.31542]
[1764672672027,0.41078,87364.0,87363.0,0.3608]
[1764672672210,0.41078,87364.0,87363.0,0.79912]
[1764672672923,0.41078,87364.0,87363.0,0.3608]
[1764672674830,0.41078,87364.0,87363.0,0.57177]
[1764672675032,0.41078,87356.0,87355.0,0.00017174]
[1764672675228,0.41078,87356.0,87355.0,0.53313174]
[1764672675432,0.41078,87356.0,87355.0,0.95463174]
[1764672676423,0.4222269,87366.0,87365.0,0.4215]
[1764672676626,0.4222269,87366.0,87355.0,0.53313174]
[1764672676627,0.422228,87358.0,87357.0,0.4215]
[1764672676818,0.41078,87356.0,87355.0,0.00017174]
[1764672677023,0.56078,87356.0,87355.0,0.00017174]
[1764672677631,0.50236843,87356.0,87355.0,0.00017174]
[1764672679022,0.41078,87356.0,87355.0,0.00017174]
[1764672680236,0.74078,87356.0,87355.0,0.00017174]
[1764672680534,0.41078,87356.0,87355.0,0.00017174]
[1764672681635,0.2141977,87360.0,87359.0,0.4215]
[1764672682739,0.41078,87365.0,87364.0,0.4215]
[1764672683325,0.41078,87365.0,87364.0,0.21097]
[1764672684238,0.41078,87365.0,87364.0,0.4215]
[1764672685538,0.4222261,87372.0,87361.0,0.3608]
[1764672685727,0.0114464,87370.0,87369.0,0.4215]
[1764672686126,0.2141964,87370.0,87369.0,0.4215]
[1764672686528,0.422226,87373.0,87365.0,0.0114469]
[1764672686729,0.2141963,87370.0,87369.0,0.4215]
[1764672687031,0.4222263,87370.0,87369.0,0.4215]
[1764672688630,4e-05,87374.0,87373.0,0.4215]
[1764672688830,0.20279,87374.0,87373.0,0.4215]
[1764672689340,0.41082,87374.0,87373.0,0.4215]
[1764672691242,0.41078,87362.0,87361.0,0.7823]
[1764672691630,0.41078,87362.0,87361.0,1.31514]
[1764672691831,0.0114473,87363.0,87362.0,0.4215]
[1764672692032,0.0114473,87363.0,87361.0,0.9050874]
[1764672692033,0.0114468,87367.0,87366.0,0.37304]
[1764672692430,0.39266,87373.0,87369.0,0.0114464]
[1764672692630,4e-05,87374.0,87373.0,0.38827]
[1764672693731,0.10341296,87425.0,87417.0,0.38827]
[1764672693930,0.3608,87438.0,87434.0,0.0114379]
[1764672693931,0.082105,87438.0,87434.0,0.0114379]
[1764672694132,0.11576,87464.0,87435.0,0.26662562]
[1764672694332,0.1013739,87471.0,87436.0,1.52189161]
[1764672694532,0.00288048,87480.0,87436.0,1.52189161]
[1764672694533,0.0114328,87474.0,87454.0,0.0114353]
[1764672694743,0.00288048,87480.0,87469.0,0.3608]
[1764672695043,0.01937914,87486.0,87469.0,0.3608]
[1764672695044,0.00794794,87486.0,87469.0,0.82336]
[1764672695234,0.00794794,87486.0,87477.0,0.0114323]
[1764672695434,0.00794794,87486.0,87469.0,0.82336]
[1764672695435,0.00794794,87486.0,87485.0,0.7216]
[1764672695637,0.00794794,87486.0,87485.0,1.24548]
[1764672695840,0.18948794,87486.0,87485.0,1.24548]
[1764672696146,0.18948794,87486.0,87485.0,0.7216]
[1764672696147,0.11180538,87486.0,87485.0,0.7216]
[1764672696641,0.11576,87504.0,87485.0,0.7216]
[1764672696642,0.01150379,87512.0,87485.0,0.7216]
[1764672696839,0.36483,87506.0,87505.0,0.7216]
[1764672697043,0.18154,87506.0,87505.0,0.7216]
[1764672697246,0.28539744,87506.0,87505.0,0.7216]
[1764672697438,0.92660479,87506.0,87505.0,0.7216]
[1764672697642,0.45791735,87506.0,87505.0,0.7216]
[1764672698164,0.01150379,87512.0,87506.0,0.0114285]
[1764672698333,0.01150379,87512.0,87506.0,0.3914285]
[1764672698653,0.04,87543.0,87520.0,0.00999999]
[1764672698842,0.04,87543.0,87542.0,0.7216]
[1764672699032,0.04,87543.0,87542.0,1.26]
[1764672699236,0.50868744,87543.0,87542.0,0.7216]
[1764672700247,0.50868744,87543.0,87542.0,1.1216]
[1764672700248,0.006,87543.0,87542.0,1.1216]
[1764672700441,0.3608,87599.0,87542.0,0.7266]
[1764672700748,0.36889363,87636.0,87596.0,0.3608]
[1764672700936,0.36889363,87636.0,87608.0,0.0114152]
[1764672700937,0.00809363,87636.0,87608.0,0.0114152]
[1764672701138,0.00809363,87636.0,87627.0,0.0114127]
[1764672701442,0.00809363,87636.0,87628.0,0.53996]
[1764672701939,0.00809363,87636.0,87635.0,0.3608]
[1764672702137,0.36483,87630.0,87629.0,0.3608]
[1764672702335,0.36483,87623.0,87622.0,0.5]
[1764672702644,0.36483,87623.0,87611.0,0.54048]
[1764672702645,0.36483,87617.0,87611.0,0.54048]
[1764672702854,0.36483,87617.0,87609.0,0.3608]
[1764672703146,0.02630827,87622.0,87609.0,0.3608]
[1764672703445,0.36889363,87636.0,87621.0,0.3608]
[1764672703446,0.00809363,87636.0,87621.0,0.3608]
[1764672703646,0.00565528,87650.0,87632.0,0.3608]
[1764672703846,0.00565528,87650.0,87633.0,0.54392]
[1764672704053,0.00565528,87650.0,87643.0,0.3608]
[1764672704348,0.00565528,87650.0,87643.0,0.7216]
[1764672704644,0.36483,87644.0,87643.0,0.3608]
[1764672704848,0.48059,87642.0,87641.0,0.5]
[1764672705045,0.48059,87642.0,87641.0,0.4896647]
[1764672705544,0.00314,87644.0,87641.0,0.4896647]
[1764672705935,0.00314,87643.0,87640.0,0.3608]
[1764672706134,0.00314,87643.0,87640.0,0.35370017]
[1764672706135,0.36483,87641.0,87640.0,0.35370017]
[1764672706535,0.00314,87643.0,87640.0,0.35370017]
[1764672706745,0.21961744,87642.0,87640.0,0.35370017]
[1764672706944,0.21961744,87642.0,87641.0,0.35766]
[1764672707151,0.58444744,87642.0,87641.0,0.90214]
[1764672707353,0.00565528,87650.0,87641.0,0.90214]
[1764672707542,0.00565528,87650.0,87649.0,0.3608]
[1764672707743,0.47656,87678.0,87649.0,0.7408]
[1764672708046,0.36831369,87658.0,87657.0,0.3608]
[1764672708450,0.36831369,87658.0,87647.0,0.54452]
[1764672708451,0.36483,87648.0,87647.0,0.54452]
[1764672708749,0.36483,87648.0,87638.0,0.0001712]
[1764672708750,0.0114112,87639.0,87638.0,0.0001712]
[1764672708946,0.46868744,87639.0,87638.0,0.0001712]
[1764672709341,0.46868744,87639.0,87632.0,0.3608]
[1764672709342,0.36483,87633.0,87632.0,0.3608]
[1764672709652,0.36483,87633.0,87627.0,0.39284]
[1764672709839,0.46868744,87628.0,87627.0,0.39284]
[1764672710045,0.11576,87624.0,87623.0,0.3608]
[1764672710246,0.48059,87624.0,87623.0,0.3608]
[1764672710837,0.36483,87616.0,87615.0,0.0001712]
[1764672711049,0.46868744,87616.0,87615.0,0.0001712]
[1764672711252,0.1054236,87616.0,87615.0,0.0001712]
[1764672711442,0.00156616,87616.0,87615.0,0.0001712]
[1764672711641,0.1054236,87616.0,87615.0,0.5001712]
[1764672711853,0.2869636,87616.0,87615.0,0.5001712]
[1764672712146,0.00156616,87616.0,87615.0,0.5001712]
[1764672712357,0.00016941,87632.0,87627.0,0.0114127]
[1764672712536,0.3608,87655.0,87633.0,0.011412]
[1764672712742,0.3608,87655.0,87631.0,0.7216]
[1764672712743,0.36483,87632.0,87631.0,0.3608]
[1764672713439,0.36483,87624.0,87623.0,0.0001712]
[1764672713638,0.36483,87624.0,87623.0,0.3609712]
[1764672714156,0.36483,87624.0,87561.0,0.1147]
[1764672714157,0.36483,87594.0,87565.0,0.3608]
[1764672714348,1.19028744,87594.0,87568.0,0.0114203]
[1764672714545,0.11576,87601.0,87565.0,0.0114207]
[1764672714546,0.3608,87577.0,87565.0,0.0114207]
[1764672714851,0.3608,87577.0,87561.0,0.47964]
[1764672715050,0.10385744,87573.0,87572.0,0.0114199]
[1764672715354,0.0001712,87581.0,87580.0,0.0114189]
[1764672715540,0.10416283,87581.0,87575.0,0.0114195]
[1764672715746,0.00030539,87581.0,87575.0,0.0114195]
[1764672715951,0.00030539,87581.0,87572.0,0.3608]
[1764672716155,0.10385744,87580.0,87571.0,0.12625258]
[1764672716350,0.11576,87570.0,87569.0,0.5]
[1764672716557,0.58444744,87570.0,87569.0,0.5]
[1764672716850,0.36483,87565.0,87564.0,0.0001712]
[1764672717050,0.0114204,87569.0,87548.0,0.011423]
[1764672717251,0.3608,87556.0,87547.0,0.31152]
[1764672717452,0.11576,87552.0,87547.0,0.31152]
[1764672717641,0.10385744,87548.0,87547.0,0.31152]
[1764672718455,0.00012692,87551.0,87548.0,0.011423]
[1764672718751,0.3608,87577.0,87548.0,0.762223]
[1764672718952,0.3608,87577.0,87572.0,0.0114199]
[1764672719155,0.10385744,87573.0,87572.0,0.0114199]
[1764672719457,0.10385744,87573.0,87572.0,0.5557799]
[1764672719656,0.10385744,87573.0,87572.0,0.54436]
[1764672720556,0.3608,87577.0,87573.0,0.0114198]
[1764672720760,0.3608,87599.0,87575.0,0.3608]
[1764672721055,0.3608,87608.0,87597.0,0.3608]
[1764672721259,0.00348369,87658.0,87597.0,0.3608]
[1764672721260,0.3608,87645.0,87614.0,0.12625258]
[1764672721555,0.3608,87656.0,87639.0,0.3608]
[1764672721556,0.11576,87647.0,87639.0,0.3608]
[1764672721762,0.10385744,87641.0,87640.0,0.3608]
[1764672722053,0.10385744,87641.0,87634.0,0.00017119]
[1764672722054,0.36483,87638.0,87634.0,0.00017119]
[1764672722256,0.10385744,87641.0,87617.0,0.3608]
[1764672722257,0.11576,87628.0,87617.0,0.3608]
[1764672722463,0.46868744,87618.0,87617.0,0.3608]
[1764672723353,0.10385744,87618.0,87617.0,0.3608]
[1764672724447,0.88393384,87618.0,87617.0,0.3608]
[1764672724645,0.88393384,87618.0,87609.0,0.00017119]
[1764672724646,0.725935,87610.0,87609.0,0.00017119]
[1764672725057,0.7686625,87610.0,87609.0,0.00017119]
[1764672725247,0.0541425,87610.0,87609.0,0.00017119]
[1764672725449,0.0541425,87610.0,87609.0,0.50017119]
[1764672726158,0.0552875,87610.0,87609.0,0.50017119]
[1764672726344,0.05550915,87610.0,87609.0,0.92989151]
[1764672726552,0.00017097,87626.0,87609.0,0.92392837]
[1764672726753,0.10385744,87610.0,87609.0,0.89687119]
[1764672726945,0.10385744,87610.0,87609.0,1.86482307]
[1764672727259,0.00017097,87626.0,87623.0,0.0114132]
[1764672727458,0.00017097,87626.0,87625.0,0.3967]
[1764672727758,0.35858097,87626.0,87625.0,0.39381502]
[1764672727955,0.10402841,87626.0,87625.0,0.40522802]
[1764672728170,0.10402841,87626.0,87625.0,0.39381502]
[1764672728663,0.1271685,87660.0,87625.0,0.39381502]
[1764672728857,0.1271685,87660.0,87623.0,0.54404]
[1764672728858,0.10123186,87640.0,87639.0,0.7689112]
[1764672729064,0.10123186,87640.0,87639.0,1.34600622]
[1764672729358,0.10123186,87640.0,87639.0,1.83459502]
[1764672729559,0.81575186,87640.0,87639.0,0.53301502]
[1764672729760,0.71452,87617.0,87616.0,0.04007509]
[1764672730065,0.71452,87617.0,87608.0,0.00017119]
[1764672730066,0.82372,87609.0,87608.0,0.00017119]
[1764672730666,0.71452,87584.0,87583.0,0.41772]
[1764672730853,0.71452,87582.0,87581.0,0.3608]
[1764672731050,0.0114198,87573.0,87569.0,0.04007509]
[1764672731261,0.1011025,87569.0,87568.0,0.3608]
[1764672731464,0.8156225,87569.0,87568.0,0.3608]
[1764672731665,0.3698313,87561.0,87560.0,0.00017129]
[1764672731963,0.7259413,87561.0,87560.0,0.00017129]
[1764672732161,0.8270438,87561.0,87560.0,0.00017129]
[1764672732361,0.10271029,87561.0,87560.0,0.3608]
[1764672732754,0.1206215,87560.0,87551.0,0.90504]
[1764672732964,0.1011025,87552.0,87551.0,0.3608]
[1764672733170,0.10118377,87552.0,87551.0,0.3608]
[1764672733356,0.10295022,87552.0,87551.0,0.3608]
[1764672734263,0.10295022,87552.0,87551.0,1.05832]
[1764672734868,0.10295022,87552.0,87551.0,0.3608]
[1764672735884,0.10295022,87552.0,87551.0,1.05832]
[1764672736258,0.92667022,87552.0,87551.0,0.3608]
[1764672736766,0.10295022,87552.0,87551.0,0.71064]
[1764672737078,0.46136022,87552.0,87551.0,0.3608]
[1764672737373,0.10295022,87552.0,87551.0,0.3608]
[1764672739273,0.10370929,87552.0,87551.0,0.3608]
[1764672739668,0.10370929,87552.0,87551.0,1.05832]
[1764672739972,0.10370929,87552.0,87551.0,0.71064]
[1764672740174,0.46211929,87552.0,87551.0,0.3608]
[1764672740672,0.81826532,87552.0,87551.0,0.3608]
[1764672741875,0.10374532,87552.0,87551.0,0.3608]
[1764672742174,0.10374532,87552.0,87551.0,1.05832]
[1764672742472,0.46215532,87552.0,87551.0,0.3608]
[1764672742674,0.10374532,87552.0,87551.0,0.3608]
[1764672743074,0.92746532,87552.0,87551.0,0.39335908]
[1764672743371,0.92746532,87552.0,87551.0,0.3608]
[1764672745564,0.7259436,87544.0,87543.0,0.00017129]
[1764672745778,0.35841,87525.0,87524.0,0.36221]
[1764672746073,0.35841,87525.0,87524.0,0.03398786]
[1764672746074,0.81576475,87525.0,87524.0,0.03398786]
[1764672746267,1.17656475,87525.0,87524.0,0.00107324]
[1764672746465,0.7259468,87519.0,87506.0,0.3608]
[1764672746777,0.0114274,87515.0,87510.0,0.00017129]
[1764672746962,0.3608,87514.0,87510.0,0.00017129]
[1764672747167,0.3608,87524.0,87523.0,0.7089463]
[1764672747369,0.3608,87524.0,87523.0,0.69752]
[1764672747563,0.46446405,87524.0,87523.0,0.69752]
[1764672747771,0.46446405,87524.0,87517.0,0.0114271]
[1764672747971,0.46446405,87524.0,87519.0,0.0114267]
[1764672748276,0.36336155,87524.0,87519.0,0.0114267]
[1764672748478,0.1011025,87520.0,87519.0,0.3612667]
[1764672748673,0.10366405,87520.0,87519.0,0.34984]
[1764672749275,0.10366405,87520.0,87519.0,0.69752]
[1764672750173,0.10366405,87520.0,87519.0,0.34984]
[1764672750376,0.10366405,87520.0,87519.0,0.69752]
[1764672751475,0.46207405,87520.0,87515.0,0.0114273]
[1764672751673,0.1011025,87516.0,87515.0,0.7089473]
[1764672752478,0.00256155,87518.0,87517.0,0.34984]
[1764672752868,0.4348025,87516.0,87515.0,0.0114273]
[1764672753573,0.1011025,87516.0,87515.0,0.6950773]
[1764672753880,0.10366405,87516.0,87515.0,0.7275858]
[1764672755370,0.10366405,87516.0,87515.0,1.2275858]
[1764672757079,0.10366405,87516.0,87515.0,1.7583185]
[1764672757380,0.00014225,87525.0,87524.0,0.6950762]
[1764672757577,0.00014225,87525.0,87524.0,1.0883847]
[1764672758173,0.3608,87545.0,87526.0,0.68365]
[1764672758371,0.3608,87545.0,87526.0,1.29850065]
[1764672758571,0.0114236,87544.0,87526.0,1.2582785]
[1764672759176,0.3608,87545.0,87526.0,1.27614125]
[1764672759177,0.00026101,87527.0,87526.0,1.27614125]
[1764672759774,0.00026101,87527.0,87526.0,1.2582785]
[1764672760073,0.00026101,87527.0,87526.0,1.2581185]
[1764672760967,0.33396101,87527.0,87526.0,0.7161585]
[1764672761178,0.67963101,87527.0,87526.0,0.0325085]
[1764672761477,0.67963101,87527.0,87526.0,0.5743085]
[1764672761879,0.00026101,87527.0,87526.0,1.2579585]
[1764672762082,0.00026101,87527.0,87526.0,1.2579185]
[1764672762381,0.33396101,87527.0,87526.0,1.2579185]
[1764672762767,0.00026101,87527.0,87526.0,1.2579185]
[1764672762972,0.3608,87545.0,87543.0,0.0114237]
[1764672763173,0.3608,87545.0,87529.0,0.17865]
[1764672763174,0.3608,87545.0,87544.0,0.5743085]
[1764672763378,0.6945,87545.0,87544.0,0.5743085]
[1764672763978,0.3337,87545.0,87544.0,0.5743085]
[1764672764284,0.3337,87545.0,87544.0,0.63498791]
[1764672764867,0.3337,87545.0,87544.0,0.41946791]
[1764672765066,0.3337,87545.0,87544.0,0.96122791]
[1764672765471,0.3337,87545.0,87544.0,0.9005485]
[1764672765866,0.3337,87545.0,87544.0,1.31859326]
[1764672766081,0.3609714,87553.0,87552.0,0.68365]
[1764672766390,0.0001714,87553.0,87552.0,0.77682492]
[1764672766566,0.0001714,87553.0,87552.0,0.7161585]
[1764672767770,0.6795414,87553.0,87552.0,0.0325085]
[1764672768281,0.0001714,87553.0,87552.0,1.0769585]
[1764672768487,0.3608,87580.0,87579.0,0.695069]
[1764672768779,0.67937,87585.0,87579.0,0.0325085]
[1764672768984,0.88461,87581.0,87580.0,0.0325085]
[1764672769178,1.24541,87581.0,87580.0,0.0325085]
[1764672769377,1.04171721,87581.0,87580.0,0.0325085]
[1764672769881,1.04171721,87581.0,87580.0,0.7161585]
[1764672769882,0.36234721,87581.0,87580.0,0.7161585]
[1764672771277,0.69604721,87581.0,87580.0,0.7161585]
[1764672771582,1.04171721,87581.0,87580.0,0.0325085]
[1764672771985,1.04171721,87581.0,87580.0,0.5739885]
[1764672772182,1.04171721,87581.0,87580.0,0.54148]
[1764672772983,1.24695721,87581.0,87580.0,0.54148]
[1764672773196,0.6907895,87575.0,87574.0,0.3608]
[1764672773383,0.0114195,87575.0,87572.0,0.0001713]
[1764672773582,0.0114195,87575.0,87553.0,0.0114224]
[1764672773583,0.67937,87557.0,87553.0,0.0114224]
[1764672773870,0.67937,87557.0,87556.0,0.68708]
[1764672774078,0.3608,87562.0,87561.0,0.68365]
[1764672774278,0.67937,87557.0,87556.0,0.3608]
[1764672774480,0.68091721,87557.0,87556.0,0.93420371]
[1764672774682,0.00154721,87557.0,87556.0,1.61785371]
[1764672775690,0.00154721,87557.0,87556.0,0.93420371]
[1764672775691,0.68091721,87557.0,87556.0,0.93420371]
[1764672776285,0.68091721,87557.0,87556.0,0.93412371]
[1764672776679,0.68091721,87557.0,87556.0,0.90184]
[1764672776886,0.68091721,87557.0,87556.0,0.3608]
[1764672777383,0.68091721,87557.0,87556.0,0.68708]
[1764672778076,0.00154721,87557.0,87556.0,1.04445]
[1764672779487,0.68091721,87557.0,87556.0,0.3608]
[1764672779679,0.68091721,87557.0,87556.0,0.90156]
[1764672780994,0.68091721,87557.0,87556.0,1.58521]
[1764672781192,0.68091721,87557.0,87556.0,1.22784]
[1764672781389,0.68091721,87557.0,87556.0,0.54076]
[1764672781593,0.67937,87549.0,87548.0,0.0001713]
[1764672781889,1.04017,87549.0,87548.0,0.0001713]
[1764672782279,0.3608,87549.0,87548.0,0.6838213]
[1764672782486,0.36234721,87549.0,87548.0,0.7161348]
[1764672782894,1.04730721,87549.0,87548.0,0.8669713]
[1764672783077,1.04730721,87549.0,87548.0,0.0001713]
[1764672784693,0.36238336,87549.0,87520.0,0.18428768]
[1764672784897,0.68496,87535.0,87534.0,0.0114248]
[1764672785593,0.68496,87532.0,87531.0,0.3460052]
[1764672785798,0.68496,87532.0,87531.0,0.03235086]
[1764672785996,0.68496,87529.0,87528.0,0.54028]
[1764672786191,0.68496,87527.0,87526.0,0.54028]
[1764672786388,0.68496,87527.0,87526.0,0.03235773]
[1764672786585,0.68496,87524.0,87523.0,0.0001713]
[1764672786784,0.6963862,87524.0,87523.0,0.03253116]
[1764672787195,0.69796956,87524.0,87523.0,0.03253116]
[1764672787692,0.68496,87500.0,87497.0,0.04040428]
[1764672787891,0.32873,87498.0,87495.0,0.5516298]
[1764672788219,0.68496,87486.0,87484.0,0.04040428]
[1764672788387,0.19737,87490.0,87484.0,0.54016]
[1764672788388,0.68496,87485.0,87484.0,0.54016]
[1764672788584,0.0001714,87493.0,87492.0,0.67289]
[1764672789191,0.00175476,87493.0,87492.0,0.67289]
[1764672791485,0.00175476,87493.0,87492.0,1.17289]
[1764672793487,0.68671476,87493.0,87492.0,1.3747]
[1764672793691,0.68671476,87493.0,87492.0,1.3745]
[1764672794001,0.68671476,87493.0,87492.0,0.5]
[1764672794401,0.68671476,87493.0,87491.0,0.0114305]
[1764672794402,0.68496,87492.0,87491.0,0.0114305]
[1764672794605,0.68496,87490.0,87489.0,0.53992]
[1764672794899,0.00175476,87493.0,87489.0,0.53992]
[1764672794900,0.00175476,87493.0,87492.0,0.67289]
[1764672795198,0.32873,87512.0,87507.0,0.0114283]
[1764672795405,0.68496,87511.0,87510.0,0.011428]
[1764672797505,0.68496,87506.0,87505.0,0.53988]
[1764672797695,0.68496,87504.0,87503.0,0.3608]
[1764672798103,0.32873,87504.0,87503.0,1.03369]
[1764672798406,0.3722279,87512.0,87504.0,0.0114288]
[1764672798604,0.3608,87512.0,87507.0,0.0114284]
[1764672798902,0.32873,87508.0,87507.0,0.0114284]
[1764672799109,0.68496,87508.0,87507.0,0.0114284]
[1764672799309,0.32873,87505.0,87503.0,0.3722289]
[1764672799495,0.68496,87504.0,87503.0,0.3722289]
[1764672799806,0.68496,87504.0,87503.0,0.9120289]
[1764672800512,0.68496,87504.0,87503.0,0.9006]
[1764672800703,0.68496,87504.0,87503.0,0.3608]
[1764672801009,0.68496,87504.0,87502.0,0.0001714]
[1764672801010,0.8937589,87503.0,87502.0,0.0001714]
[1764672801202,0.68496,87483.0,87482.0,0.0114316]
[1764672801408,0.68496,87483.0,87482.0,0.58305109]
[1764672801806,0.68496,87483.0,87482.0,0.58297109]
[1764672802202,0.6963915,87483.0,87482.0,0.03189949]
[1764672802404,0.68496,87477.0,87476.0,0.3608]
[1764672802598,0.68496,87477.0,87474.0,0.00025885]
[1764672802599,0.68496,87475.0,87474.0,0.00025885]
[1764672804500,0.68496,87483.0,87477.0,0.0114322]
[1764672804701,0.68496,87475.0,87474.0,0.00025885]
[1764672806305,0.68496,87466.0,87465.0,0.3608]
[1764672806801,0.68496,87459.0,87458.0,0.3608]
[1764672807001,0.68496,87459.0,87458.0,0.39272314]
[1764672807202,0.68496,87459.0,87458.0,1.06561314]
[1764672807398,0.68504745,87459.0,87458.0,1.06561314]
[1764672807713,8.745e-05,87459.0,87458.0,1.06561314]
[1764672808201,0.32881745,87459.0,87458.0,1.06561314]
[1764672808601,0.32881745,87459.0,87458.0,1.60537314]
[1764672809010,8.745e-05,87459.0,87458.0,1.60537314]
[1764672809912,0.32881745,87459.0,87458.0,1.60537314]
[1764672810412,8.745e-05,87459.0,87458.0,1.06561314]
[1764672810609,0.68504745,87459.0,87458.0,1.60533314]
[1764672810804,0.68504745,87459.0,87458.0,1.06561314]
[1764672811108,0.68504745,87459.0,87458.0,1.60517314]
[1764672811502,0.69648215,87459.0,87458.0,0.39272314]
[1764672811701,0.68504745,87459.0,87458.0,0.57140314]
[1764672812110,0.69648215,87459.0,87458.0,0.57140314]
[1764672812310,0.68504745,87459.0,87458.0,0.57140314]
[1764672812714,0.68504745,87459.0,87458.0,0.03192314]
[1764672812905,0.70339,87451.0,87450.0,0.0001715]
[1764672813104,0.35499,87451.0,87450.0,1.27325629]
[1764672813605,0.70339,87451.0,87450.0,0.03213629]
[1764672813804,0.70339,87451.0,87450.0,0.0001715]
[1764672814704,0.70339,87437.0,87436.0,0.03024975]
[1764672814999,0.70347745,87437.0,87436.0,0.57134991]
[1764672815913,0.70347745,87437.0,87436.0,0.91456991]
[1764672816109,0.70347745,87437.0,87436.0,0.57134991]
[1764672816612,0.70347745,87437.0,87436.0,0.03198991]
[1764672818211,0.70347745,87437.0,87436.0,0.0307471]
[1764672818514,0.70347745,87437.0,87429.0,0.40256366]
[1764672818515,0.35499,87430.0,87429.0,0.7131586]
[1764672818913,0.35499,87430.0,87429.0,0.70172]
[1764672819506,0.70339,87430.0,87428.0,0.00011444]
[1764672819704,0.70339,87429.0,87428.0,0.00011444]
[1764672820407,0.7148286,87429.0,87428.0,0.00011444]
[1764672821006,0.71491605,87429.0,87428.0,0.00011444]
[1764672821508,0.87491605,87429.0,87428.0,0.00011444]
[1764672821718,0.7148286,87429.0,87428.0,0.00011444]
[1764672822014,0.71491605,87429.0,87428.0,0.00011444]
[1764672822215,0.70339,87411.0,87410.0,0.3723351]
[1764672822415,0.70347072,87411.0,87410.0,0.7155551]
[1764672823322,8.072e-05,87411.0,87410.0,1.0740551]
[1764672823508,0.35507072,87411.0,87410.0,1.0740551]
[1764672823814,0.70347072,87411.0,87410.0,9.4e-05]
[1764672824119,0.70347072,87411.0,87410.0,0.701814]
[1764672824718,0.70347072,87411.0,87410.0,0.343314]
[1764672824915,0.70347072,87411.0,87410.0,9.4e-05]
[1764672826216,0.70347072,87411.0,87410.0,0.701814]
[1764672826420,0.35507072,87411.0,87410.0,0.701814]
[1764672827417,8.072e-05,87411.0,87410.0,0.701814]
[1764672827616,0.35507072,87411.0,87410.0,0.701814]
[1764672827817,0.70347072,87411.0,87410.0,0.701814]
[1764672828612,0.70347072,87411.0,87410.0,0.343314]
[1764672829316,0.70347072,87411.0,87410.0,0.701814]
[1764672830313,0.70347072,87411.0,87410.0,0.73386303]
[1764672832524,0.70347072,87411.0,87410.0,0.03214303]
[1764672834528,8.072e-05,87411.0,87410.0,0.73386303]
[1764672834916,0.35507072,87411.0,87410.0,0.73386303]
[1764672835324,0.70347072,87411.0,87410.0,0.73386303]
[1764672836114,0.70347072,87411.0,87410.0,0.03214303]
[1764672836521,0.70347072,87411.0,87410.0,0.74530413]
[1764672838529,0.70347072,87411.0,87410.0,0.73386303]
[1764672840427,8.072e-05,87411.0,87410.0,0.73386303]
[1764672840619,0.70347072,87411.0,87410.0,0.03214303]
[1764672840816,1.83571162,87411.0,87410.0,0.01190815]
[1764672841032,0.7148328,87397.0,87396.0,0.03040989]
[1764672841232,0.7148333,87393.0,87392.0,0.03040989]
[1764672841428,0.0001716,87401.0,87400.0,0.70172]
[1764672841632,0.7035616,87401.0,87400.0,0.70172]
[1764672841829,0.70368176,87401.0,87400.0,0.70172]
[1764672842021,0.70368176,87401.0,87399.0,0.0114424]
[1764672842022,0.91874,87400.0,87399.0,0.0114424]
[1764672842331,0.91874,87400.0,87399.0,0.05198013]
[1764672842515,0.91874,87400.0,87399.0,0.04053773]
[1764672843418,0.91874,87400.0,87399.0,0.01789136]
[1764672843617,0.59961,87395.0,87393.0,0.06060643]
[1764672843817,0.30282,87400.0,87399.0,0.6561925]
[1764672844121,0.00029176,87401.0,87400.0,0.64475]
[1764672844426,0.00029176,87401.0,87400.0,0.66264149]
[1764672844730,0.00029176,87401.0,87400.0,0.66264078]
[1764672845322,0.59990176,87401.0,87400.0,0.01789078]
[1764672845932,0.59961,87396.0,87395.0,0.38310643]
[1764672846118,0.59961,87396.0,87395.0,0.01789189]